[Event "Live Chess"]
[Site "Chess.com"]
[Date "2023.05.21"]
[Round "-"]
[White "smoggyrabbit"]
[Black "LutherSullivan"]
[Result "0-1"]
[WhiteElo "1739"]
[BlackElo "2185"]
[TimeControl "300"]
[EndTime "22:31:55 PDT"]
[Termination "LutherSullivan won on time"]

1. d4 {[%clk 0:04:58.6]} 1... Nf6 {[%clk 0:04:58.3]} 2. Nf3 {[%clk 0:04:57.5]}
2... g6 {[%clk 0:04:57.8]} 3. e3 {[%clk 0:04:56.6]} 3... Bg7 {[%clk 0:04:57.4]}
4. Be2 {[%clk 0:04:54.2]} 4... O-O {[%clk 0:04:57]} 5. O-O {[%clk 0:04:53.2]}
5... d5 {[%clk 0:04:55.5]} 6. b4 {[%clk 0:04:52.2]} 6... a5 {[%clk 0:04:53.9]}
7. b5 {[%clk 0:04:47.9]} 7... Ne4 {[%clk 0:04:53.5]} 8. Bb2 {[%clk 0:04:36.3]}
8... c5 {[%clk 0:04:51.1]} 9. bxc6 {[%clk 0:04:34.7]} 9... bxc6 {[%clk
0:04:48.8]} 10. Nbd2 {[%clk 0:04:33.5]} 10... a4 {[%clk 0:04:42.9]} 11. c4
{[%clk 0:04:30.3]} 11... a3 {[%clk 0:04:41]} 12. Bc1 {[%clk 0:04:26.6]} 12...
Nc3 {[%clk 0:04:38.6]} 13. Qe1 {[%clk 0:04:25.6]} 13... Nxe2+ {[%clk 0:04:37.4]}
14. Qxe2 {[%clk 0:04:24.6]} 14... c5 {[%clk 0:04:32.2]} 15. cxd5 {[%clk
0:04:17.2]} 15... Ba6 {[%clk 0:04:14.5]} 16. Nc4 {[%clk 0:03:59.8]} 16... Qxd5
{[%clk 0:04:11.3]} 17. Nfd2 {[%clk 0:03:53.8]} 17... cxd4 {[%clk 0:04:09.1]} 18.
exd4 {[%clk 0:03:22.4]} 18... Nc6 {[%clk 0:04:05.1]} 19. Bxa3 {[%clk 0:02:44.7]}
19... Nxd4 {[%clk 0:04:01.1]} 20. Qd3 {[%clk 0:02:38.9]} 20... Rfc8 {[%clk
0:03:49.4]} 21. Rfc1 {[%clk 0:02:28.6]} 21... Ne2+ {[%clk 0:03:09.4]} 22. Qxe2
{[%clk 0:02:21.9]} 22... Bxa1 {[%clk 0:03:08.7]} 23. Rxa1 {[%clk 0:01:39.9]}
23... Bxc4 {[%clk 0:03:05]} 24. Nxc4 {[%clk 0:01:37.9]} 24... Qxc4 {[%clk
0:03:01.9]} 25. Qxc4 {[%clk 0:01:34.4]} 25... Rxc4 {[%clk 0:03:00.1]} 26. Bxe7
{[%clk 0:01:29.6]} 26... Rxa2 {[%clk 0:02:56.4]} 27. Rd1 {[%clk 0:01:24.8]}
27... Kg7 {[%clk 0:02:45.5]} 28. h3 {[%clk 0:01:21.7]} 28... Rcc2 {[%clk
0:02:41]} 29. Bh4 {[%clk 0:01:16.4]} 29... h6 {[%clk 0:02:33.6]} 30. Bg3 {[%clk
0:01:14.8]} 30... Rc5 {[%clk 0:02:25.5]} 31. Rb1 {[%clk 0:01:03.4]} 31... Rac2
{[%clk 0:02:22.9]} 32. Rb7 {[%clk 0:00:56.9]} 32... Rc1+ {[%clk 0:02:18.6]} 33.
Kh2 {[%clk 0:00:55.7]} 33... Rf5 {[%clk 0:02:18]} 34. Rb2 {[%clk 0:00:49.5]}
34... Rd1 {[%clk 0:02:11.6]} 35. Re2 {[%clk 0:00:44.9]} 35... Rdd5 {[%clk
0:02:07.6]} 36. Rb2 {[%clk 0:00:37.8]} 36... Rb5 {[%clk 0:02:06.2]} 37. Re2
{[%clk 0:00:36.5]} 37... h5 {[%clk 0:02:05.5]} 38. h4 {[%clk 0:00:19.6]} 38...
Rb4 {[%clk 0:02:03.7]} 39. Rd2 {[%clk 0:00:17.7]} 39... Ra4 {[%clk 0:02:02]} 40.
Rc2 {[%clk 0:00:16.3]} 40... Kf6 {[%clk 0:02:00.3]} 41. Rc6+ {[%clk 0:00:14]}
41... Kg7 {[%clk 0:01:58.6]} 42. Rc2 {[%clk 0:00:12.4]} 42... Rfa5 {[%clk
0:01:57.5]} 43. Rd2 {[%clk 0:00:11.5]} 43... Ra2 {[%clk 0:01:56.4]} 44. Rd8
{[%clk 0:00:10.1]} 44... Rb5 {[%clk 0:01:49.9]} 45. Rc8 {[%clk 0:00:08.9]} 45...
Re2 {[%clk 0:01:48.2]} 46. Rc7 {[%clk 0:00:07.6]} 46... Rb1 {[%clk 0:01:44.8]}
47. Rd7 {[%clk 0:00:06.4]} 47... Ree1 {[%clk 0:01:43.5]} 48. Bd6 {[%clk
0:00:04.1]} 48... Rh1+ {[%clk 0:01:41.4]} 49. Kg3 {[%clk 0:00:03.3]} 49... Rb3+
{[%clk 0:01:40.8]} 50. f3 {[%clk 0:00:02.6]} 50... Re1 {[%clk 0:01:37.9]} 51.
Bf4 {[%clk 0:00:01.3]} 51... Re2 {[%clk 0:01:34.4]} 52. Rc7 {[%clk 0:00:00.6]}
52... Rbb2 {[%clk 0:01:32.4]} 0-1

[Event "Live Chess"]
[Site "Chess.com"]
[Date "2023.05.21"]
[Round "-"]
[White "Ocelot32"]
[Black "CheckThis4"]
[Result "0-1"]
[WhiteElo "1329"]
[BlackElo "2493"]
[TimeControl "300"]
[EndTime "22:32:43 PDT"]
[Termination "CheckThis4 won by resignation"]

1. e4 {[%clk 0:04:56.9]} 1... d5 {[%clk 0:04:56.7]} 2. exd5 {[%clk 0:04:53.5]}
2... Nf6 {[%clk 0:04:55.7]} 3. d4 {[%clk 0:04:51.8]} 3... Bg4 {[%clk 0:04:53.5]}
4. f3 {[%clk 0:04:50.2]} 4... Bf5 {[%clk 0:04:52.1]} 5. Bd3 {[%clk 0:04:49]}
5... Bxd3 {[%clk 0:04:49.2]} 6. Qxd3 {[%clk 0:04:48]} 6... Nxd5 {[%clk
0:04:47.8]} 7. Ne2 {[%clk 0:04:43]} 7... Nc6 {[%clk 0:04:45.7]} 8. O-O {[%clk
0:04:40]} 8... g6 {[%clk 0:04:42.8]} 9. c4 {[%clk 0:04:38.1]} 9... Ndb4 {[%clk
0:04:34.7]} 10. Qe4 {[%clk 0:04:19.5]} 10... f5 {[%clk 0:04:28.1]} 11. Qe6
{[%clk 0:03:59.2]} 11... Nxd4 {[%clk 0:04:20.3]} 12. Nf4 {[%clk 0:03:53.2]} 0-1

[Event "Live Chess"]
[Site "Chess.com"]
[Date "2023.05.21"]
[Round "-"]
[White "MaximKhimchenko"]
[Black "seabuck"]
[Result "0-1"]
[WhiteElo "1374"]
[BlackElo "1890"]
[TimeControl "300"]
[EndTime "22:32:57 PDT"]
[Termination "seabuck won by resignation"]

1. e4 {[%clk 0:04:57.2]} 1... c6 {[%clk 0:04:59.1]} 2. Nf3 {[%clk 0:04:56]} 2...
d5 {[%clk 0:04:57.8]} 3. exd5 {[%clk 0:04:55.9]} 3... cxd5 {[%clk 0:04:56.1]} 4.
d4 {[%clk 0:04:55.8]} 4... Nc6 {[%clk 0:04:54.6]} 5. c4 {[%clk 0:04:55]} 5...
Nf6 {[%clk 0:04:50.9]} 6. cxd5 {[%clk 0:04:54]} 6... Nxd5 {[%clk 0:04:49.3]} 7.
Bc4 {[%clk 0:04:53.5]} 7... e6 {[%clk 0:04:33.8]} 8. O-O {[%clk 0:04:52.2]} 8...
Be7 {[%clk 0:04:32.7]} 9. Nc3 {[%clk 0:04:50.2]} 9... O-O {[%clk 0:04:27.4]} 10.
Bd3 {[%clk 0:04:45.6]} 10... Nf6 {[%clk 0:04:20.3]} 11. Bg5 {[%clk 0:04:42.7]}
11... h6 {[%clk 0:04:15.6]} 12. Be3 {[%clk 0:04:40.3]} 12... Nb4 {[%clk
0:04:08.6]} 13. Ne4 {[%clk 0:04:09.2]} 13... b6 {[%clk 0:03:55.6]} 14. Bb1
{[%clk 0:04:06.1]} 14... Bb7 {[%clk 0:03:51.4]} 15. Nxf6+ {[%clk 0:04:04.7]}
15... Bxf6 {[%clk 0:03:50.1]} 16. a3 {[%clk 0:04:03.9]} 16... Nd5 {[%clk
0:03:40]} 17. Qd3 {[%clk 0:04:02.1]} 17... g6 {[%clk 0:03:24]} 18. Bxh6 {[%clk
0:03:53.8]} 18... Bg7 {[%clk 0:03:21.9]} 19. Bxg7 {[%clk 0:03:52.2]} 19... Kxg7
{[%clk 0:03:21.1]} 20. Ne5 {[%clk 0:03:48.1]} 20... Qg5 {[%clk 0:03:10.1]} 21.
f4 {[%clk 0:03:28.5]} 21... Nxf4 {[%clk 0:03:00.1]} 22. Qd2 {[%clk 0:03:22]}
22... Nh3+ {[%clk 0:02:47.2]} 23. Kh1 {[%clk 0:03:17.3]} 23... Qxd2 {[%clk
0:02:46]} 0-1

[Event "Live Chess"]
[Site "Chess.com"]
[Date "2023.05.21"]
[Round "-"]
[White "Rusty_Bridges"]
[Black "Singapourfeuj"]
[Result "0-1"]
[WhiteElo "1440"]
[BlackElo "2200"]
[TimeControl "300"]
[EndTime "22:33:03 PDT"]
[Termination "Singapourfeuj won by resignation"]

1. e4 {[%clk 0:04:55.1]} 1... c5 {[%clk 0:04:57.5]} 2. Be2 {[%clk 0:04:51.8]}
2... g6 {[%clk 0:04:55.5]} 3. f4 {[%clk 0:04:48.7]} 3... d5 {[%clk 0:04:53.3]}
4. e5 {[%clk 0:04:46.4]} 4... h5 {[%clk 0:04:51.3]} 5. Nf3 {[%clk 0:04:43.1]}
5... Bg4 {[%clk 0:04:49.4]} 6. O-O {[%clk 0:04:41.3]} 6... e6 {[%clk 0:04:48.3]}
7. d4 {[%clk 0:04:35.3]} 7... cxd4 {[%clk 0:04:47.4]} 8. Nxd4 {[%clk 0:04:31.1]}
8... Bxe2 {[%clk 0:04:45.2]} 9. Qxe2 {[%clk 0:04:21]} 9... Nc6 {[%clk 0:04:44]}
10. c3 {[%clk 0:04:15.7]} 10... Nh6 {[%clk 0:04:38.8]} 11. Nd2 {[%clk
0:04:01.5]} 11... Nf5 {[%clk 0:04:35.8]} 12. N2f3 {[%clk 0:03:54.9]} 12... Bc5
{[%clk 0:04:32.9]} 13. Be3 {[%clk 0:03:47.6]} 13... Qb6 {[%clk 0:04:27.1]} 14.
Rfd1 {[%clk 0:03:37.2]} 14... Nxe3 {[%clk 0:04:13.4]} 15. Qxe3 {[%clk
0:03:35.4]} 15... h4 {[%clk 0:04:09.5]} 16. b4 {[%clk 0:03:31.6]} 16... Bxd4
{[%clk 0:04:04.7]} 17. Nxd4 {[%clk 0:03:27.8]} 17... h3 {[%clk 0:04:03.1]} 18.
g3 {[%clk 0:03:26]} 18... Rc8 {[%clk 0:04:01]} 19. a4 {[%clk 0:03:13.4]} 19...
Nxd4 {[%clk 0:03:54.7]} 20. Rxd4 {[%clk 0:03:06.5]} 20... a5 {[%clk 0:03:45.6]}
21. bxa5 {[%clk 0:02:51.7]} 21... Qxa5 {[%clk 0:03:44.2]} 22. Rb4 {[%clk
0:02:49.2]} 22... O-O {[%clk 0:03:32.9]} 23. g4 {[%clk 0:02:38.3]} 23... Rc4
{[%clk 0:03:23.9]} 24. f5 {[%clk 0:02:13.7]} 24... Rxb4 {[%clk 0:03:15.2]} 25.
cxb4 {[%clk 0:02:11.3]} 25... Qxb4 {[%clk 0:03:14.1]} 26. f6 {[%clk 0:01:43.5]}
26... Qxg4+ {[%clk 0:03:11.7]} 27. Qg3 {[%clk 0:01:39.9]} 27... Qd4+ {[%clk
0:03:07.3]} 0-1

[Event "Live Chess"]
[Site "Chess.com"]
[Date "2023.05.21"]
[Round "-"]
[White "profpirate4"]
[Black "Nazarenko_vital"]
[Result "1-0"]
[WhiteElo "1189"]
[BlackElo "1622"]
[TimeControl "300"]
[EndTime "22:33:50 PDT"]
[Termination "profpirate4 won on time"]

1. d4 {[%clk 0:04:58.1]} 1... Nf6 {[%clk 0:04:58.1]} 2. c4 {[%clk 0:04:57.6]}
2... e5 {[%clk 0:04:56.9]} 3. Nc3 {[%clk 0:04:57.5]} 3... Bb4 {[%clk 0:04:53.3]}
4. dxe5 {[%clk 0:04:54.4]} 4... Ng4 {[%clk 0:04:51.6]} 5. Nf3 {[%clk 0:04:48.3]}
5... Nc6 {[%clk 0:04:50.1]} 6. a3 {[%clk 0:04:46]} 6... Bxc3+ {[%clk 0:04:44.6]}
7. bxc3 {[%clk 0:04:44.8]} 7... Ngxe5 {[%clk 0:04:35.2]} 8. Qd5 {[%clk
0:04:42.2]} 8... Qe7 {[%clk 0:04:32]} 9. Bg5 {[%clk 0:04:38.1]} 9... Qe6 {[%clk
0:04:15.5]} 10. e4 {[%clk 0:04:22.3]} 10... d6 {[%clk 0:04:07.6]} 11. Nd4 {[%clk
0:03:57]} 11... Qxd5 {[%clk 0:03:50.9]} 12. cxd5 {[%clk 0:03:54.4]} 12... Nxd4
{[%clk 0:03:44.7]} 13. cxd4 {[%clk 0:03:53.2]} 13... Ng6 {[%clk 0:03:32.8]} 14.
Bb5+ {[%clk 0:03:47.9]} 14... Bd7 {[%clk 0:03:27.3]} 15. Bxd7+ {[%clk
0:03:46.1]} 15... Kxd7 {[%clk 0:03:26.2]} 16. Rb1 {[%clk 0:03:43.4]} 16... f6
{[%clk 0:03:22.5]} 17. Be3 {[%clk 0:03:39.2]} 17... b6 {[%clk 0:03:21.3]} 18.
O-O {[%clk 0:03:37.6]} 18... h5 {[%clk 0:03:01.5]} 19. Rfc1 {[%clk 0:03:33.3]}
19... h4 {[%clk 0:02:49.8]} 20. h3 {[%clk 0:03:31.5]} 20... Ne7 {[%clk
0:02:39.9]} 21. Rb3 {[%clk 0:03:23.9]} 21... f5 {[%clk 0:02:34.6]} 22. f3 {[%clk
0:03:07.6]} 22... a5 {[%clk 0:02:04.5]} 23. Rbc3 {[%clk 0:03:05.6]} 23... Ra7
{[%clk 0:01:43.9]} 24. Bg5 {[%clk 0:02:56.4]} 24... Ng8 {[%clk 0:01:36.7]} 25.
e5 {[%clk 0:02:38.1]} 25... dxe5 {[%clk 0:01:04.8]} 26. dxe5 {[%clk 0:02:35.8]}
26... Nh6 {[%clk 0:00:51.7]} 27. Rc6 {[%clk 0:02:19.8]} 27... Re8 {[%clk
0:00:27.6]} 28. e6+ {[%clk 0:02:18]} 28... Kc8 {[%clk 0:00:24.7]} 29. Re1 {[%clk
0:01:54.5]} 29... b5 {[%clk 0:00:18.6]} 30. d6 {[%clk 0:01:49.4]} 1-0

[Event "Live Chess"]
[Site "Chess.com"]
[Date "2023.05.21"]
[Round "-"]
[White "Grookey2012"]
[Black "YrrriKharkiv"]
[Result "0-1"]
[WhiteElo "563"]
[BlackElo "2039"]
[TimeControl "300"]
[EndTime "22:34:07 PDT"]
[Termination "YrrriKharkiv won by resignation"]

1. e4 {[%clk 0:04:58.4]} 1... e6 {[%clk 0:04:51.9]} 2. Nc3 {[%clk 0:04:53.8]}
2... d5 {[%clk 0:04:50.7]} 3. exd5 {[%clk 0:04:52.6]} 3... exd5 {[%clk 0:04:49]}
4. Qf3 {[%clk 0:04:43.4]} 4... c6 {[%clk 0:04:46.7]} 5. Nce2 {[%clk 0:04:32.3]}
5... Nf6 {[%clk 0:04:41.5]} 6. d3 {[%clk 0:04:23.5]} 6... h6 {[%clk 0:04:38]} 7.
c4 {[%clk 0:04:21.3]} 7... Bd6 {[%clk 0:04:22.6]} 8. cxd5 {[%clk 0:04:17.8]}
8... Nxd5 {[%clk 0:04:13.5]} 9. Nf4 {[%clk 0:04:14.5]} 9... O-O {[%clk
0:03:53.6]} 10. Ngh3 {[%clk 0:03:33.9]} 10... Nd7 {[%clk 0:03:22.9]} 11. Nxd5
{[%clk 0:03:30.8]} 11... cxd5 {[%clk 0:03:21.5]} 12. Qxd5 {[%clk 0:03:28.2]}
12... Nf6 {[%clk 0:03:20.3]} 13. Qf3 {[%clk 0:03:11.5]} 13... Re8+ {[%clk
0:03:12.6]} 14. Be2 {[%clk 0:03:09]} 14... Bg4 {[%clk 0:03:11.6]} 15. Qxb7
{[%clk 0:02:45.6]} 15... Bxe2 {[%clk 0:03:02.8]} 16. Bxh6 {[%clk 0:02:38.2]}
16... gxh6 {[%clk 0:02:51.4]} 17. g3 {[%clk 0:02:20.9]} 17... Rb8 {[%clk
0:02:48.4]} 18. Nf4 {[%clk 0:02:20.8]} 18... Rxb7 {[%clk 0:02:42.1]} 0-1

[Event "Live Chess"]
[Site "Chess.com"]
[Date "2023.05.21"]
[Round "-"]
[White "Jo1ts"]
[Black "Long1968"]
[Result "0-1"]
[WhiteElo "826"]
[BlackElo "1058"]
[TimeControl "300"]
[EndTime "22:34:13 PDT"]
[Termination "Long1968 won by resignation"]

1. d4 {[%clk 0:04:58.7]} 1... e6 {[%clk 0:04:57.6]} 2. Bf4 {[%clk 0:04:55.5]}
2... Nf6 {[%clk 0:04:53.4]} 3. e3 {[%clk 0:04:54.5]} 3... c5 {[%clk 0:04:45]} 4.
Nf3 {[%clk 0:04:53.7]} 4... Nc6 {[%clk 0:04:40.8]} 5. c3 {[%clk 0:04:51.8]} 5...
d5 {[%clk 0:04:38.2]} 6. Bb5 {[%clk 0:04:48.5]} 6... Bd6 {[%clk 0:04:35.4]} 7.
Bxc6+ {[%clk 0:04:44.7]} 7... bxc6 {[%clk 0:04:32]} 8. Bg3 {[%clk 0:04:44.2]}
8... O-O {[%clk 0:04:25.8]} 9. Nbd2 {[%clk 0:04:34.8]} 9... cxd4 {[%clk
0:04:21.5]} 10. cxd4 {[%clk 0:04:32.9]} 10... Nh5 {[%clk 0:04:12.9]} 11. Bxd6
{[%clk 0:04:27]} 11... Qxd6 {[%clk 0:04:09.8]} 12. O-O {[%clk 0:04:20]} 12... f5
{[%clk 0:03:48.9]} 13. Ne5 {[%clk 0:04:16.3]} 13... g6 {[%clk 0:03:40.9]} 14.
Ndf3 {[%clk 0:04:09.7]} 14... f4 {[%clk 0:03:35]} 15. Ng5 {[%clk 0:04:00.8]}
15... Rf5 {[%clk 0:03:05.5]} 16. Nh3 {[%clk 0:03:52.4]} 16... Ba6 {[%clk
0:02:46.2]} 17. Re1 {[%clk 0:03:41.1]} 17... Raf8 {[%clk 0:02:29.6]} 18. e4
{[%clk 0:03:19.8]} 18... dxe4 {[%clk 0:02:17.6]} 19. Rxe4 {[%clk 0:03:16.5]}
19... Rd8 {[%clk 0:01:50.7]} 20. Qd2 {[%clk 0:02:42.1]} 20... Rxe5 {[%clk
0:01:29.4]} 21. Rxe5 {[%clk 0:02:32.7]} 21... Qxe5 {[%clk 0:01:25.6]} 22. Qa5
{[%clk 0:02:18.8]} 22... Qxa5 {[%clk 0:01:18.8]} 0-1

[Event "Live Chess"]
[Site "Chess.com"]
[Date "2023.05.21"]
[Round "-"]
[White "MaximKhimchenko"]
[Black "Ocelot32"]
[Result "0-1"]
[WhiteElo "1365"]
[BlackElo "1344"]
[TimeControl "300"]
[EndTime "22:34:19 PDT"]
[Termination "Ocelot32 won by checkmate"]

1. e4 {[%clk 0:04:58.4]} 1... e6 {[%clk 0:04:58.2]} 2. Nf3 {[%clk 0:04:57.4]}
2... d5 {[%clk 0:04:56.9]} 3. exd5 {[%clk 0:04:56.8]} 3... exd5 {[%clk 0:04:56]}
4. d4 {[%clk 0:04:56.3]} 4... Nf6 {[%clk 0:04:54.7]} 5. c4 {[%clk 0:04:56.2]}
5... c6 {[%clk 0:04:52.9]} 6. Nc3 {[%clk 0:04:56.1]} 6... Be6 {[%clk 0:04:50.6]}
7. Be2 {[%clk 0:04:56]} 7... dxc4 {[%clk 0:04:49.1]} 8. O-O {[%clk 0:04:55.9]}
8... Be7 {[%clk 0:04:46.7]} 9. Re1 {[%clk 0:04:55.8]} 9... O-O {[%clk
0:04:43.9]} 10. Bg5 {[%clk 0:04:51.9]} 10... Nbd7 {[%clk 0:04:41.1]} 11. Ne5
{[%clk 0:04:51.8]} 11... Nd5 {[%clk 0:04:34.8]} 12. Bxe7 {[%clk 0:04:48.5]}
12... Qxe7 {[%clk 0:04:33]} 13. Bxc4 {[%clk 0:04:47.2]} 13... Nxc3 {[%clk
0:04:24.4]} 14. bxc3 {[%clk 0:04:47.1]} 14... Nxe5 {[%clk 0:04:20.9]} 15. Rxe5
{[%clk 0:04:46]} 15... Qf6 {[%clk 0:04:10.7]} 16. Bxe6 {[%clk 0:04:43.8]} 16...
fxe6 {[%clk 0:04:09.8]} 17. Qb3 {[%clk 0:04:42.4]} 17... Qxf2+ {[%clk
0:04:08.3]} 18. Kh1 {[%clk 0:04:41.1]} 18... Qf1+ {[%clk 0:04:07]} 19. Rxf1
{[%clk 0:04:39.6]} 19... Rxf1# {[%clk 0:04:06]} 0-1

[Event "Live Chess"]
[Site "Chess.com"]
[Date "2023.05.21"]
[Round "-"]
[White "Conradical12"]
[Black "Nazar_777"]
[Result "0-1"]
[WhiteElo "1630"]
[BlackElo "1625"]
[TimeControl "300"]
[EndTime "22:34:36 PDT"]
[Termination "Nazar_777 won by resignation"]

1. e4 {[%clk 0:04:50.5]} 1... e6 {[%clk 0:04:59.9]} 2. d4 {[%clk 0:04:47.6]}
2... a6 {[%clk 0:04:59.8]} 3. Nf3 {[%clk 0:04:44.5]} 3... h5 {[%clk 0:04:58.4]}
4. Nc3 {[%clk 0:04:42.1]} 4... c5 {[%clk 0:04:57.4]} 5. d5 {[%clk 0:04:40.9]}
5... Nf6 {[%clk 0:04:56]} 6. Bg5 {[%clk 0:04:35.5]} 6... Be7 {[%clk 0:04:53.9]}
7. d6 {[%clk 0:04:31.9]} 7... Bf8 {[%clk 0:04:52.1]} 8. e5 {[%clk 0:04:30.6]}
8... Qb6 {[%clk 0:04:48.2]} 9. exf6 {[%clk 0:04:12]} 9... gxf6 {[%clk
0:04:46.8]} 10. Bxf6 {[%clk 0:04:09.9]} 10... Rg8 {[%clk 0:04:46]} 11. Bd3
{[%clk 0:03:18.6]} 11... Bxd6 {[%clk 0:04:43.2]} 12. h3 {[%clk 0:03:07.7]} 12...
Be7 {[%clk 0:04:41.6]} 13. Bh7 {[%clk 0:03:05]} 13... Rf8 {[%clk 0:04:38.2]} 14.
Bg7 {[%clk 0:03:03.2]} 14... Nc6 {[%clk 0:04:36.9]} 15. Bxf8 {[%clk 0:03:01.9]}
15... Bxf8 {[%clk 0:04:35.4]} 16. Ne4 {[%clk 0:02:59.3]} 16... Nd4 {[%clk
0:04:29.9]} 17. Nxd4 {[%clk 0:02:56.2]} 17... cxd4 {[%clk 0:04:28.3]} 18. O-O
{[%clk 0:02:51.5]} 18... Be7 {[%clk 0:04:22.9]} 19. Qxh5 {[%clk 0:02:44.3]}
19... Qc6 {[%clk 0:04:20.5]} 20. Rae1 {[%clk 0:02:36.3]} 20... b5 {[%clk
0:04:19.2]} 21. Bg8 {[%clk 0:02:33.3]} 21... Bb7 {[%clk 0:04:11.7]} 22. Qxf7+
{[%clk 0:02:28.2]} 22... Kd8 {[%clk 0:04:10.4]} 23. c3 {[%clk 0:02:13.3]} 23...
Bg5 {[%clk 0:04:08.7]} 24. f3 {[%clk 0:02:02]} 24... Be3+ {[%clk 0:03:55.9]} 25.
Kh1 {[%clk 0:01:58.2]} 25... Kc7 {[%clk 0:03:39.7]} 26. cxd4 {[%clk 0:01:50.7]}
26... Bh6 {[%clk 0:03:27.3]} 27. Qf6 {[%clk 0:01:16.1]} 27... Rxg8 {[%clk
0:03:14.6]} 28. Qxh6 {[%clk 0:01:09.4]} 28... Qd5 {[%clk 0:03:11.4]} 29. Rc1+
{[%clk 0:01:05.6]} 29... Bc6 {[%clk 0:03:10.1]} 30. Nf6 {[%clk 0:01:03.2]} 30...
Qg5 {[%clk 0:03:05.4]} 31. Nxg8 {[%clk 0:00:55.6]} 31... Qxg8 {[%clk 0:03:03.7]}
32. Qf4+ {[%clk 0:00:53]} 32... Kb7 {[%clk 0:03:02.1]} 33. Qd6 {[%clk
0:00:41.5]} 33... Qc8 {[%clk 0:02:53.1]} 34. Rc4 {[%clk 0:00:17.4]} 34... bxc4
{[%clk 0:02:51]} 35. Qb4+ {[%clk 0:00:17]} 35... Bb5 {[%clk 0:02:49.1]} 36. Qxc4
{[%clk 0:00:16.9]} 36... Bxc4 {[%clk 0:02:47.5]} 0-1

[Event "Live Chess"]
[Site "Chess.com"]
[Date "2023.05.21"]
[Round "-"]
[White "MaximKhimchenko"]
[Black "Grookey2012"]
[Result "1-0"]
[WhiteElo "1365"]
[BlackElo "563"]
[TimeControl "300"]
[EndTime "22:35:27 PDT"]
[Termination "MaximKhimchenko won by resignation"]

1. e4 {[%clk 0:04:58.3]} 1... d5 {[%clk 0:04:58.5]} 2. Nf3 {[%clk 0:04:58.2]}
2... dxe4 {[%clk 0:04:57]} 3. Ne5 {[%clk 0:04:57.7]} 3... e6 {[%clk 0:04:44.1]}
4. Bc4 {[%clk 0:04:55.4]} 4... Bc5 {[%clk 0:04:42.4]} 5. O-O {[%clk 0:04:53.2]}
5... Bd6 {[%clk 0:04:39.7]} 6. Ng4 {[%clk 0:04:51]} 6... Qg5 {[%clk 0:04:34.8]}
7. d4 {[%clk 0:04:48.9]} 7... h5 {[%clk 0:04:32.3]} 8. Bxg5 {[%clk 0:04:47.4]}
8... Bxh2+ {[%clk 0:04:28.8]} 9. Nxh2 {[%clk 0:04:45.6]} 9... Rh6 {[%clk
0:04:28.7]} 10. Bxh6 {[%clk 0:04:44.3]} 10... b5 {[%clk 0:04:23]} 11. Bxb5+
{[%clk 0:04:41.1]} 11... Kd8 {[%clk 0:04:19.4]} 1-0

[Event "Live Chess"]
[Site "Chess.com"]
[Date "2023.05.21"]
[Round "-"]
[White "Conradical12"]
[Black "OleksiyJr1"]
[Result "1-0"]
[WhiteElo "1630"]
[BlackElo "965"]
[TimeControl "300"]
[EndTime "22:35:39 PDT"]
[Termination "Conradical12 won by resignation"]

1. e4 {[%clk 0:04:57.9]} 1... c5 {[%clk 0:04:58.4]} 2. Nf3 {[%clk 0:04:57.3]}
2... Nc6 {[%clk 0:04:57.9]} 3. Bc4 {[%clk 0:04:56.7]} 3... d6 {[%clk 0:04:57]}
4. Ng5 {[%clk 0:04:54.9]} 4... e5 {[%clk 0:04:55.1]} 5. Nxf7 {[%clk 0:04:53.6]}
5... Qf6 {[%clk 0:04:50.1]} 6. Nxh8 {[%clk 0:04:50.9]} 6... Be6 {[%clk
0:04:46.7]} 7. Bxe6 {[%clk 0:04:48.4]} 7... Qxe6 {[%clk 0:04:46.6]} 8. Qh5+
{[%clk 0:04:45.9]} 8... g6 {[%clk 0:04:44.7]} 9. Qxh7 {[%clk 0:04:44.5]} 9...
Qg4 {[%clk 0:04:42.3]} 10. Qxb7 {[%clk 0:04:41.8]} 10... Nd4 {[%clk 0:04:41.1]}
11. Qxa8+ {[%clk 0:04:39.8]} 11... Ke7 {[%clk 0:04:39.6]} 12. Qb7+ {[%clk
0:04:37.4]} 12... Ke6 {[%clk 0:04:38.7]} 13. Qc8+ {[%clk 0:04:36.2]} 13... Kf6
{[%clk 0:04:32.9]} 14. Qxg4 {[%clk 0:04:36.1]} 1-0

[Event "Live Chess"]
[Site "Chess.com"]
[Date "2023.05.21"]
[Round "-"]
[White "Grookey2012"]
[Black "Conradical12"]
[Result "0-1"]
[WhiteElo "563"]
[BlackElo "1630"]
[TimeControl "300"]
[EndTime "22:36:22 PDT"]
[Termination "Conradical12 won by resignation"]

1. e4 {[%clk 0:04:58.3]} 1... e5 {[%clk 0:04:59.5]} 2. Bc4 {[%clk 0:04:56.8]}
2... Nc6 {[%clk 0:04:59.1]} 3. Qf3 {[%clk 0:04:55.5]} 3... Nf6 {[%clk
0:04:58.6]} 4. g4 {[%clk 0:04:50.3]} 4... Nd4 {[%clk 0:04:57.9]} 5. Qf5 {[%clk
0:04:46.6]} 5... Nxf5 {[%clk 0:04:56.5]} 6. exf5 {[%clk 0:04:44.1]} 6... d5
{[%clk 0:04:54.8]} 7. Bxd5 {[%clk 0:04:42.7]} 7... Qxd5 {[%clk 0:04:53.6]} 8. c4
{[%clk 0:04:42.3]} 8... Qxh1 {[%clk 0:04:52.5]} 9. b3 {[%clk 0:04:42.2]} 9...
Qxg1+ {[%clk 0:04:51.6]} 10. Ke2 {[%clk 0:04:38.5]} 10... Qxc1 {[%clk
0:04:51.2]} 11. Nc3 {[%clk 0:04:36.7]} 11... Qxa1 {[%clk 0:04:49.4]} 0-1